bitfinex/quotes_SOLUSD_20241226
["timestamp","ask_amount","ask_price","bid_price","bid_amount"]
[1735255772882,0.49579301,188.06,187.96,8.02028321]
[1735255773172,7.89479321,188.03,187.96,8.02028321]
[1735255773469,7.89479321,188.02,187.96,0.12549]
[1735255784479,0.49579301,188.06,187.96,0.12549]
[1735255784651,7.89479321,188.02,187.96,0.12549]
[1735255785377,7.89479321,188.02,187.96,8.02028321]
[1735255785862,0.49579301,188.06,187.96,8.02028321]
[1735255786062,7.89479321,188.03,187.96,8.02028321]
[1735255789277,0.49579301,188.06,187.96,8.02028321]
[1735255789456,7.89479321,188.03,187.96,8.02028321]
[1735255794279,7.89479321,188.04,187.96,8.02028321]
[1735255794479,0.49579301,188.03,187.96,0.12549]
[1735255794655,0.49579301,188.03,187.96,8.02028321]
[1735255797389,0.49579301,188.03,187.98,0.12549]
[1735255800483,0.49579301,188.03,187.96,0.12549]
[1735255800659,8.39058622,188.03,187.96,0.12549]
[1735255801074,7.89479321,188.0,187.95,8.2166]
[1735255801264,0.49579301,187.99,187.95,8.2166]
[1735255801469,0.49579301,187.99,187.95,1.9069]
[1735255801680,0.49579301,188.04,187.96,8.02028321]
[1735255801869,7.89479321,188.04,187.96,8.02028321]
[1735255802059,0.49579301,188.03,187.96,8.02028321]
[1735255802495,8.39058622,188.03,187.96,8.02028321]
[1735255802885,0.49579301,188.03,187.96,8.02028321]
[1735255803069,7.89479321,188.04,187.96,8.02028321]
[1735255803264,7.89479321,188.01,187.96,0.12549]
[1735255804089,7.89479321,188.03,187.96,0.12549]
[1735255804298,7.89479321,188.03,187.96,8.02028321]
[1735255805387,0.49579301,188.07,187.98,0.12549]
[1735255805695,7.89479321,188.06,187.99,0.12549]
[1735255805991,0.49579301,188.05,187.99,0.12549]
[1735255806868,7.89479321,188.06,187.99,0.12549]
[1735255807067,0.49579301,188.05,187.99,0.12549]
[1735255807787,7.89479321,188.06,187.99,0.12549]
[1735255808090,0.49579301,188.05,187.99,0.12549]
[1735255808283,8.39058622,188.05,187.98,0.12549]
[1735255808487,8.39058622,188.05,187.98,8.02028321]
[1735255812701,7.89479321,188.05,187.98,8.02028321]
[1735255814603,0.49579301,188.09,187.98,8.02028321]
[1735255814813,7.89479321,188.05,187.98,8.02028321]
[1735255816010,20.0,188.09,188.0,0.12549]
[1735255816176,7.89479321,188.07,188.0,0.12549]
[1735255816375,7.89479321,188.06,188.0,0.12549]
[1735255818303,7.89479321,188.07,188.0,0.12549]
[1735255818498,0.49579301,188.08,188.01,8.02028321]
[1735255818715,0.49579301,188.11,188.05,8.02028321]
[1735255819019,7.89479321,188.13,188.06,7.89479321]
[1735255819185,0.49579301,188.12,188.06,7.89479321]
[1735255819381,0.49579301,188.12,188.07,0.12549]
[1735255819605,7.89479321,188.15,188.08,8.02028321]
[1735255820603,7.89479321,188.14,188.08,8.02028321]
[1735255823414,7.89479321,188.15,188.08,8.02028321]
[1735255823599,8.39058622,188.14,188.04,0.12549]
[1735255823916,8.39058622,188.14,188.08,0.12549]
[1735255824090,7.89479321,188.14,188.08,0.12549]
[1735255825013,7.89479321,188.11,188.03,0.79743222]
[1735255825190,7.89479321,188.07,188.02,8.0991]
[1735255825390,7.89479321,188.05,188.0,8.32472002]
[1735255825698,7.89479321,188.04,188.0,8.32472002]
[1735255825880,0.49579301,188.12,187.98,8.0991]
[1735255826086,7.89479321,188.03,187.98,8.0991]
[1735255826601,7.89479321,188.05,187.99,0.12549]
[1735255827494,8.39058622,188.04,187.99,0.12549]
[1735255828899,0.49579301,188.09,187.99,0.12549]
[1735255829104,7.89479321,188.05,187.99,0.12549]
[1735255829304,8.39058622,188.04,187.99,0.12549]
[1735255829919,7.89479321,188.04,187.99,0.12549]
[1735255831017,8.39058622,188.03,187.99,0.12549]
[1735255831217,8.39058622,188.03,187.98,8.0991]
[1735255831397,7.89479321,188.02,187.98,8.0991]
[1735255831594,7.89479321,188.04,187.99,0.12549]
[1735255831803,7.89479321,188.06,187.99,8.02028321]
[1735255833196,7.89479321,188.05,187.99,0.12549]
[1735255833820,8.39058622,188.04,187.99,0.12549]
[1735255833990,7.89479321,188.03,187.98,8.0991]
[1735255834195,7.89479321,188.02,187.98,8.0991]
[1735255835226,7.89479321,188.03,187.98,8.0991]
[1735255835402,7.89479321,188.04,187.99,0.12549]
[1735255835924,7.89479321,188.02,187.94,8.4151]
[1735255836138,7.89479321,187.99,187.94,8.4151]
[1735255836341,8.39058622,187.98,187.91,7.89479321]
[1735255836844,8.39058622,187.98,187.92,0.12549]
[1735255837403,7.89479321,187.97,187.92,0.12549]
[1735255837598,3.9892,188.01,187.9,16.30989321]
[1735255837599,0.49579301,187.96,187.9,8.4151]
[1735255837816,3.9892,188.01,187.9,8.4151]
[1735255837817,7.89479321,187.95,187.9,8.4151]
[1735255838242,7.89479321,187.96,187.91,0.12549]
[1735255846138,7.89479321,187.92,187.85,8.4151]
[1735255846342,1.8579,187.98,187.85,8.4151]
[1735255846343,7.89479321,187.9,187.85,8.4151]
[1735255846509,1.8579,187.98,187.85,8.4151]
[1735255846510,7.89479321,187.89,187.85,8.4151]
[1735255846842,7.89479321,187.87,187.81,8.4151]
[1735255847054,7.89479321,187.87,187.82,0.12549]
[1735255847234,7.89479321,187.87,187.81,8.4151]
[1735255847411,7.89479321,187.88,187.81,16.30989321]
[1735255847610,7.89479321,187.89,187.83,0.12549]
[1735255847906,7.89479321,187.9,187.83,8.02028321]
[1735255848727,7.89479321,187.89,187.82,8.02028321]
[1735255848926,8.39058622,187.88,187.82,0.12549]
[1735255849246,7.89479321,187.87,187.82,0.12549]
[1735255849456,7.89479321,187.86,187.81,8.4151]
[1735255849918,7.89479321,187.87,187.82,0.12549]
[1735255850317,7.89479321,187.88,187.82,0.12549]
[1735255850748,8.39058622,187.87,187.82,0.12549]
[1735255851462,8.39058622,187.87,187.81,8.4151]
[1735255851629,7.89479321,187.86,187.81,8.4151]
[1735255851960,8.39058622,187.85,187.77,0.12549]
[1735255852144,8.39058622,187.85,187.77,8.02028321]
[1735255853662,7.89479321,187.83,187.77,0.12549]
[1735255853862,7.89479321,187.81,187.76,8.1928]
[1735255855433,0.49579301,187.8,187.76,8.1928]
[1735255855633,7.89479321,187.81,187.76,8.1928]
[1735255856255,7.89479321,187.82,187.77,0.12549]
[1735255858463,0.49579301,187.81,187.77,0.12549]
[1735255858772,7.89479321,187.82,187.77,0.12549]
[1735255859978,0.49579301,187.81,187.77,0.12549]
[1735255860280,7.89479321,187.8,187.76,8.1928]
[1735255860645,7.89479321,187.81,187.76,8.1928]
[1735255861268,7.89479321,187.79,187.71,8.1365]
[1735255861484,7.89479321,187.76,187.71,8.1365]
[1735255861653,0.49579301,187.75,187.71,8.1365]
[1735255861841,3.9935,187.81,187.72,0.12549]
[1735255862042,0.49579301,187.82,187.74,8.02028321]
[1735255862267,7.89479321,187.81,187.75,0.12549]
[1735255863145,0.49579301,187.8,187.75,0.12549]
[1735255863345,7.89479321,187.81,187.75,0.12549]
[1735255864376,0.49579301,187.8,187.75,0.12549]
[1735255864576,7.89479321,187.81,187.75,0.12549]
[1735255865372,8.39058622,187.8,187.74,0.12549]
[1735255865980,7.89479321,187.8,187.74,0.12549]
[1735255866187,20.49579301,187.84,187.74,0.12549]
[1735255866390,7.89479321,187.81,187.74,0.12549]
[1735255867551,8.39058622,187.8,187.72,7.89479321]
[1735255868272,7.89479321,187.78,187.71,8.1365]
[1735255868450,8.39058622,187.77,187.71,8.1365]
[1735255868850,7.89479321,187.76,187.71,8.1365]
[1735255869075,0.49579301,187.75,187.71,8.1365]
[1735255869454,20.49579301,187.82,187.71,8.1365]
[1735255869752,7.89479321,187.76,187.71,8.1365]
[1735255871071,7.89479321,187.78,187.72,0.12549]
[1735255871274,8.39058622,187.77,187.72,0.12549]
[1735255871474,7.89479321,187.77,187.72,0.12549]
[1735255871671,8.39058622,187.79,187.72,8.02028321]
[1735255871859,7.89479321,187.8,187.74,0.12549]
[1735255872061,8.39058622,187.79,187.72,7.89479321]
[1735255872362,8.39058622,187.79,187.72,0.12549]
[1735255872575,7.89479321,187.78,187.72,0.12549]
[1735255872981,7.89479321,187.79,187.72,0.12549]
[1735255873849,7.89479321,187.79,187.72,8.02028321]
[1735255874678,0.49579301,187.78,187.72,0.12549]
[1735255875564,7.89479321,187.76,187.71,8.1365]
[1735255875758,8.39058622,187.75,187.71,8.1365]
[1735255875960,7.89479321,187.73,187.67,8.1241]
[1735255876257,8.39058622,187.72,187.67,8.1241]
[1735255877076,8.39058622,187.72,187.68,0.12549]
[1735255877982,7.89479321,187.71,187.63,1.9391]
[1735255878155,7.89479321,187.7,187.63,9.83389321]
[1735255878357,8.39058622,187.69,187.63,1.9391]
[1735255878560,7.89479321,187.68,187.63,1.9391]
[1735255878759,7.89479321,187.67,187.63,1.9391]
[1735255879071,7.89479321,187.68,187.63,1.9391]
[1735255880399,8.39058622,187.67,187.63,1.9391]
[1735255880685,7.89479321,187.65,187.62,6.158]
[1735255880885,7.89479321,187.65,187.59,7.89479321]
[1735255881762,7.89479321,187.65,187.59,0.12549]
[1735255882362,7.89479321,187.63,187.59,0.12549]
[1735255882569,7.89479321,187.63,187.58,8.0971]
[1735255882774,7.89479321,187.62,187.58,8.0971]
[1735255882961,7.89479321,187.63,187.58,8.0971]
[1735255884382,7.89479321,187.62,187.58,8.0971]
[1735255886274,0.49579301,187.67,187.59,0.12549]
[1735255886571,7.89479321,187.67,187.61,0.12549]
[1735255886969,7.89479321,187.66,187.61,0.12549]
[1735255887166,7.89479321,187.65,187.6,0.12549]
[1735255887366,7.89479321,187.64,187.6,0.12549]
[1735255887577,7.89479321,187.62,187.58,8.0971]
[1735255888280,7.89479321,187.63,187.59,0.12549]
[1735255888688,7.89479321,187.62,187.59,0.12549]
[1735255888988,7.89479321,187.63,187.59,0.12549]
[1735255890882,7.89479321,187.64,187.59,0.12549]
[1735255891565,7.89479321,187.63,187.59,0.12549]
[1735255891860,7.89479321,187.63,187.58,8.0971]
[1735255892087,7.89479321,187.62,187.58,8.0971]
[1735255892384,7.89479321,187.63,187.58,8.0971]
[1735255893282,7.89479321,187.62,187.58,8.0971]
[1735255893667,7.89479321,187.6,187.53,8.5639]
[1735255893866,8.39058622,187.59,187.53,8.5639]
[1735255894170,7.89479321,187.56,187.49,9.88269321]
[1735255894685,7.89479321,187.56,187.5,0.12549]
[1735255895406,7.89479321,187.56,187.49,1.9879]
[1735255895407,7.89479321,187.54,187.49,1.9879]
[1735255895562,7.89479321,187.53,187.49,1.9879]
[1735255896672,7.89479321,187.52,187.49,1.9879]
[1735255897092,7.89479321,187.53,187.49,1.9879]
[1735255897289,7.89479321,187.54,187.49,1.9879]
[1735255898178,7.89479321,187.53,187.49,1.9879]
[1735255898991,7.89479321,187.54,187.49,1.9879]
[1735255899195,7.89479321,187.55,187.49,1.9879]
[1735255899370,0.49579301,187.57,187.49,1.9879]
[1735255899570,7.89479321,187.55,187.49,1.9879]
[1735255900188,8.39058622,187.54,187.49,1.9879]
[1735255900578,7.89479321,187.54,187.49,1.9879]
[1735255901890,0.49579301,187.57,187.44,13.3371]
[1735255901891,7.89479321,187.52,187.44,8.5639]
[1735255902072,8.39058622,187.51,187.44,8.5639]
[1735255902272,7.89479321,187.5,187.44,8.5639]
[1735255902772,7.89479321,187.5,187.45,0.12549]
[1735255903208,7.89479321,187.51,187.45,0.12549]
[1735255903892,7.89479321,187.52,187.45,8.02028321]
[1735255904811,8.39058622,187.51,187.45,0.12549]
[1735255906209,8.39058622,187.51,187.44,8.5639]
[1735255906395,7.89479321,187.49,187.44,8.5639]
[1735255906916,8.39058622,187.48,187.44,8.5639]
[1735255907294,0.49579301,187.48,187.45,0.12549]
[1735255907588,7.89479321,187.53,187.47,0.12549]
[1735255907798,7.89479321,187.53,187.44,8.5639]
[1735255907978,7.89479321,187.51,187.44,16.45869321]
[1735255908175,0.49579301,187.5,187.44,8.5639]
[1735255908415,7.89479321,187.51,187.44,16.45869321]
[1735255908621,7.89479321,187.52,187.45,8.02028321]
[1735255908808,7.89479321,187.52,187.45,0.12549]
[1735255908981,0.49579301,187.51,187.45,8.02028321]
[1735255909302,7.89479321,187.52,187.45,8.02028321]
[1735255909485,0.49579301,187.51,187.45,8.02028321]
[1735255909692,8.39058622,187.51,187.45,0.12549]
[1735255910326,7.89479321,187.52,187.45,0.12549]
[1735255910488,8.39058622,187.51,187.45,0.12549]
[1735255910985,8.39058622,187.51,187.44,16.45869321]
[1735255910986,7.89479321,187.5,187.44,8.5639]
[1735255911198,7.89479321,187.48,187.44,8.5639]
[1735255911517,7.89479321,187.46,187.39,16.00159321]
[1735255912518,7.89479321,187.47,187.4,0.12549]
[1735255912725,7.89479321,187.47,187.4,8.02028321]
[1735255913027,7.89479321,187.47,187.4,7.89479321]
[1735255913304,7.89479321,187.47,187.41,0.12549]
[1735255913514,0.49579301,187.46,187.41,0.12549]
[1735255913686,8.39058622,187.46,187.41,0.12549]
[1735255913887,8.39058622,187.46,187.4,0.12549]
[1735255914285,7.89479321,187.47,187.4,0.12549]
[1735255915012,0.49579301,187.46,187.4,0.12549]
[1735255915614,8.39058622,187.46,187.4,0.12549]
[1735255917127,7.89479321,187.47,187.4,0.12549]
[1735255917409,7.89479321,187.47,187.4,8.02028321]
[1735255917609,7.89479321,187.48,187.4,8.02028321]
[1735255919512,7.89479321,187.49,187.43,0.12549]
[1735255920110,7.89479321,187.48,187.41,7.89479321]
[1735255923306,0.49579301,187.53,187.42,8.02028321]
[1735255923509,8.39058622,187.53,187.46,0.12549]
[1735255923697,7.89479321,187.53,187.46,15.98178321]
[1735255923898,7.89479321,187.53,187.46,8.08699]
[1735255924212,7.89479321,187.52,187.46,8.08699]
[1735255924387,7.89479321,187.53,187.46,15.98178321]
[1735255925089,7.89479321,187.54,187.46,15.98178321]
[1735255925609,7.89479321,187.53,187.46,15.98178321]
[1735255926102,0.49579301,187.57,187.49,7.89479321]
[1735255926415,7.89479321,187.56,187.5,0.12549]
[1735255928000,7.89479321,187.57,187.51,0.12549]
[1735255929114,0.49579301,187.65,187.54,8.02028321]
[1735255929295,7.89479321,187.6,187.54,0.12549]
[1735255929495,8.39058622,187.59,187.54,0.12549]
[1735255929691,7.89479321,187.59,187.54,0.12549]
[1735255930110,7.89479321,187.6,187.54,0.12549]
[1735255930718,0.49579301,187.65,187.54,8.02028321]
[1735255930906,0.49579301,187.65,187.56,8.02028321]
[1735255931110,7.89479321,187.63,187.56,8.02028321]
[1735255931689,0.49579301,187.68,187.56,8.02028321]
[1735255931895,7.89479321,187.64,187.58,0.12549]
[1735255932095,7.89479321,187.65,187.58,0.12549]
[1735255933115,7.89479321,187.62,187.54,0.79944975]
[1735255933316,7.89479321,187.59,187.53,7.9615]
[1735255933514,7.89479321,187.56,187.53,7.9615]
[1735255934019,7.89479321,187.55,187.53,7.9615]
[1735255934218,7.89479321,187.55,187.49,7.9753]
[1735255934591,7.89479321,187.55,187.5,0.12549]
[1735255935310,7.89479321,187.55,187.49,7.9753]
[1735255935906,7.89479321,187.55,187.5,0.12549]
[1735255938510,7.89479321,187.52,187.44,8.185]
[1735255938821,7.89479321,187.52,187.45,0.12549]
[1735255939021,7.89479321,187.54,187.47,0.12549]
[1735255939320,0.49579301,187.53,187.47,0.12549]
[1735255939526,7.89479321,187.54,187.47,0.12549]
[1735255939726,0.49579301,187.53,187.47,0.12549]
[1735255939935,0.49579301,187.57,187.47,0.12549]
[1735255940107,7.89479321,187.57,187.49,0.12549]
[1735255940302,7.89479321,187.55,187.49,0.12549]
[1735255940711,7.89479321,187.55,187.47,8.02028321]
[1735255941005,8.39058622,187.54,187.47,0.12549]
[1735255943226,7.89479321,187.54,187.47,0.12549]
[1735255943435,0.49579301,187.59,187.51,0.12549]
[1735255943436,7.89479321,187.57,187.51,0.12549]
[1735255943720,8.39058622,187.56,187.49,0.12549]
[1735255945023,0.49579301,187.56,187.52,0.12549]
[1735255945202,7.89479321,187.59,187.52,0.12549]
[1735255946025,0.49579301,187.65,187.52,0.12549]
[1735255946026,7.89479321,187.57,187.52,0.12549]
[1735255946322,7.89479321,187.56,187.52,0.12549]
[1735255947100,7.89479321,187.58,187.52,0.12549]
[1735255947402,7.89479321,187.59,187.52,8.02028321]
[1735255949698,7.89479321,187.6,187.54,0.12549]
[1735255949910,7.89479321,187.61,187.54,0.12549]
[1735255950113,8.39058622,187.6,187.54,0.12549]
[1735255950731,7.89479321,187.6,187.54,0.12549]
[1735255951322,7.89479321,187.61,187.55,0.12549]
[1735255951537,7.89479321,187.62,187.55,0.12549]
[1735255951926,7.89479321,187.63,187.56,0.12549]
[1735255952116,7.89479321,187.63,187.56,8.02028321]
[1735255952615,7.89479321,187.63,187.56,0.12549]
[1735255952823,7.89479321,187.63,187.56,8.02028321]
[1735255955931,7.89479321,187.62,187.56,0.12549]
[1735255956231,7.89479321,187.61,187.55,0.12549]
[1735255956808,0.49579301,187.6,187.53,7.89479321]
[1735255957833,7.89479321,187.61,187.54,0.12549]
[1735255959120,7.89479321,187.62,187.55,8.02028321]
[1735255959317,7.89479321,187.62,187.55,0.12549]
[1735255959630,7.89479321,187.61,187.53,8.02028321]
[1735255960133,7.89479321,187.62,187.55,0.12549]
[1735255960311,7.89479321,187.62,187.55,8.02028321]
[1735255960636,7.89479321,187.63,187.55,8.02028321]
[1735255961032,0.49579301,187.65,187.57,0.12549]
[1735255961216,0.49579301,187.65,187.59,0.12549]
[1735255961217,7.89479321,187.65,187.59,0.12549]
[1735255961617,7.89479321,187.66,187.59,8.02028321]
[1735255961814,7.89479321,187.67,187.59,8.02028321]
[1735255962123,7.89479321,187.66,187.6,0.12549]
[1735255962531,7.89479321,187.67,187.6,0.12549]
[1735255962730,7.89479321,187.69,187.62,0.12549]
[1735255962925,8.39058622,187.68,187.62,0.12549]
[1735255963322,7.89479321,187.67,187.61,0.12549]
[1735255964235,7.89479321,187.68,187.61,7.89479321]
[1735255964439,7.89479321,187.68,187.62,0.12549]
[1735255965845,7.89479321,187.69,187.62,0.12549]
[1735255966447,7.89479321,187.69,187.62,8.58489]
[1735255966643,7.89479321,187.68,187.62,8.58489]
[1735255966938,7.89479321,187.67,187.62,8.58489]
[1735255967120,7.89479321,187.68,187.62,8.58489]
[1735255967542,7.89479321,187.69,187.62,8.58489]
[1735255968620,7.89479321,187.67,187.62,8.58489]
[1735255968818,0.49579301,187.66,187.62,8.58489]
[1735255969129,7.89479321,187.67,187.62,8.58489]
[1735255969647,7.89479321,187.66,187.62,8.4594]
[1735255969936,7.89479321,187.65,187.57,16.14929321]
[1735255970145,7.89479321,187.64,187.58,0.12549]
[1735255972845,7.89479321,187.65,187.58,0.12549]
[1735255973042,7.89479321,187.65,187.58,8.02028321]
[1735255973247,7.89479321,187.66,187.6,0.12549]
[1735255973544,7.89479321,187.68,187.6,8.02028321]
[1735255973723,7.89479321,187.7,187.63,0.12549]
[1735255974249,7.89479321,187.69,187.63,0.12549]
[1735255977150,0.49579301,187.68,187.6,21.22049321]
[1735255977334,7.89479321,187.69,187.6,21.22049321]
[1735255977646,7.89479321,187.69,187.63,0.12549]
[1735255978950,7.89479321,187.71,187.65,0.12549]
[1735255980754,8.39058622,187.7,187.65,0.12549]
[1735255980956,7.89479321,187.69,187.65,0.12549]
[1735255981251,7.89479321,187.67,187.6,7.89479321]
[1735255981455,7.89479321,187.68,187.61,8.02028321]
[1735255982746,0.49579301,187.67,187.59,8.2545]
[1735255982949,7.89479321,187.64,187.59,8.2545]
[1735255983145,8.39058622,187.63,187.59,8.2545]
[1735255984231,3.9955,187.71,187.6,0.12549]
[1735255984232,0.49579301,187.69,187.6,0.12549]
[1735255984437,7.89479321,187.65,187.6,0.12549]
[1735255986842,7.89479321,187.63,187.59,8.2545]
[1735255987443,7.89479321,187.65,187.6,0.12549]
[1735255987644,7.89479321,187.66,187.6,0.12549]
[1735255987849,7.89479321,187.67,187.6,8.02028321]
[1735255988948,7.89479321,187.68,187.6,8.02028321]
[1735255989754,7.89479321,187.68,187.62,0.12549]
[1735255990145,0.49579301,187.71,187.62,0.12549]
[1735255990345,7.89479321,187.68,187.62,0.12549]
[1735255991556,7.89479321,187.68,187.6,8.02028321]
[1735255993055,7.89479321,187.68,187.6,0.12549]
[1735255993252,7.89479321,187.68,187.62,0.12549]
[1735255993657,7.89479321,187.67,187.61,0.12549]
[1735255993961,7.89479321,187.68,187.61,0.12549]
[1735255996271,8.39058622,187.67,187.59,8.2545]
[1735255996481,7.89479321,187.64,187.59,8.2545]
[1735255996688,8.39058622,187.63,187.59,8.2545]
[1735255998433,7.89479321,187.62,187.54,7.9194]
[1735255998723,7.89479321,187.62,187.55,7.89479321]
[1735255998910,0.49579301,187.61,187.55,7.89479321]
[1735255999313,7.89479321,187.62,187.55,7.89479321]
[1735255999704,0.49579301,187.61,187.55,7.89479321]
[1735256001013,7.89479321,187.63,187.55,7.89479321]
[1735256001311,7.89479321,187.6,187.54,7.9194]
[1735256001700,7.89479321,187.61,187.54,7.9194]
[1735256001900,0.49579301,187.6,187.54,7.9194]
[1735256002389,8.39058622,187.6,187.54,7.9194]
[1735256003333,0.49579301,187.6,187.54,7.9194]
[1735256003503,7.89479321,187.62,187.55,8.02028321]
[1735256003909,0.49579301,187.61,187.55,8.02028321]
[1735256004199,8.39058622,187.61,187.55,0.12549]
[1735256010108,0.49579301,187.66,187.57,0.12549]
[1735256010305,7.89479321,187.64,187.58,0.12549]
[1735256010936,7.89479321,187.65,187.58,0.12549]
[1735256011115,7.89479321,187.67,187.61,0.12549]
[1735256011320,7.89479321,187.68,187.61,8.02028321]
[1735256011934,8.39058622,187.67,187.61,0.12549]
[1735256012406,8.39058622,187.67,187.6,0.12549]
[1735256014944,7.89479321,187.66,187.6,0.12549]
[1735256015513,7.89479321,187.67,187.6,0.12549]
[1735256016937,0.49579301,187.66,187.6,0.12549]
[1735256019017,7.89479321,187.67,187.6,0.12549]
[1735256019217,0.49579301,187.7,187.62,0.12549]
[1735256019436,7.89479321,187.71,187.64,0.12549]
[1735256019647,7.89479321,187.71,187.61,21.4265]
[1735256019648,0.49579301,187.7,187.61,21.4265]
[1735256019945,8.39058622,187.7,187.62,7.89479321]
[1735256020148,7.89479321,187.7,187.63,0.12549]
[1735256020351,7.89479321,187.71,187.63,8.02028321]
[1735256020525,7.89479321,187.72,187.65,8.02028321]
[1735256021244,0.49579301,187.76,187.67,8.02028321]
[1735256021453,7.89479321,187.75,187.67,8.02028321]
[1735256022133,7.89479321,187.74,187.67,8.02028321]
[1735256024755,7.89479321,187.75,187.69,0.12549]
[1735256024931,0.49579301,187.77,187.71,7.89479321]
[1735256025129,0.49579301,187.8,187.74,0.12549]
[1735256025351,7.89479321,187.81,187.74,8.02028321]
[1735256025847,7.89479321,187.83,187.76,8.02028321]
[1735256026046,7.89479321,187.84,187.77,7.89479321]
[1735256026250,7.89479321,187.84,187.78,0.12549]
[1735256026437,0.49579301,187.83,187.77,15.99579321]
[1735256026635,7.89479321,187.78,187.72,8.101]
[1735256026946,8.39058622,187.77,187.72,8.101]
[1735256027534,7.89479321,187.78,187.72,8.101]
[1735256027729,7.89479321,187.79,187.73,0.12549]
[1735256027935,7.89479321,187.8,187.73,8.02028321]
[1735256028354,8.39058622,187.79,187.73,0.12549]
[1735256029059,7.89479321,187.78,187.72,8.101]
[1735256029356,7.89479321,187.8,187.73,0.12549]
[1735256029565,7.89479321,187.81,187.74,7.89479321]
[1735256029742,7.89479321,187.82,187.76,0.12549]
[1735256029945,7.89479321,187.83,187.76,8.02028321]
[1735256030752,7.89479321,187.83,187.76,0.12549]
[1735256030957,8.39058622,187.82,187.76,0.12549]
[1735256031146,7.89479321,187.82,187.76,0.12549]
[1735256031333,7.89479321,187.83,187.76,0.12549]
[1735256032860,7.89479321,187.83,187.77,0.12549]
[1735256033349,7.89479321,187.84,187.77,0.12549]
[1735256034641,7.89479321,187.84,187.77,7.89479321]
[1735256035768,7.89479321,187.85,187.78,0.12549]
[1735256035961,7.89479321,187.85,187.78,8.02028321]
[1735256036662,7.89479321,187.86,187.78,8.02028321]
[1735256036863,7.89479321,187.86,187.78,9.88808321]
[1735256037068,7.89479321,187.86,187.79,6.4536]
[1735256037476,7.89479321,187.86,187.79,14.34839321]
[1735256038449,7.89479321,187.86,187.79,6.4536]
[1735256038773,0.49579301,187.89,187.8,0.12549]
[1735256038974,7.89479321,187.87,187.8,8.02028321]
[1735256041770,20.0,187.91,187.82,0.12549]
[1735256041948,0.49579301,187.93,187.84,0.12549]
[1735256042155,7.89479321,187.92,187.86,0.12549]
[1735256042470,7.89479321,187.93,187.86,0.12549]
[1735256042673,7.89479321,187.94,187.86,14.50638321]
[1735256042892,8.39058622,187.96,187.89,0.12549]
[1735256043695,7.89479321,187.97,187.9,0.12549]
[1735256043865,7.89479321,187.98,187.9,8.02028321]
[1735256044188,7.89479321,187.99,187.93,0.12549]
[1735256045379,0.49579301,188.03,187.93,9.99738321]
[1735256045586,7.89479321,188.01,187.95,0.12549]
[1735256046178,12.37182537,188.01,187.95,0.12549]
[1735256046670,0.49579301,188.06,187.97,12.37182537]
[1735256046874,12.37182537,188.04,187.97,12.37182537]
[1735256047171,12.37182537,188.04,187.98,0.12549]
[1735256047552,12.37182537,188.05,187.98,12.49731537]
[1735256047773,12.37182537,188.06,188.0,0.12549]
[1735256048269,12.37182537,188.07,188.0,12.49731537]
[1735256048573,0.49579301,188.12,188.01,14.47441537]
[1735256048781,12.37182537,188.09,188.03,0.12549]
[1735256049648,12.37182537,188.07,188.02,6.4861]
[1735256050171,12.37182537,188.08,188.02,6.4861]
[1735256050673,12.37182537,188.08,188.03,0.12549]
[1735256050861,12.37182537,188.09,188.03,0.12549]
[1735256051469,12.37182537,188.1,188.03,0.12549]
[1735256051658,12.37182537,188.1,188.03,12.49731537]
[1735256051866,0.49579301,188.14,188.05,0.12549]
[1735256052052,12.37182537,188.12,188.06,0.12549]
[1735256053464,12.37182537,188.08,188.02,6.4861]
[1735256053672,12.37182537,188.06,188.01,1.9771]
[1735256053978,12.37182537,188.09,188.02,12.49731537]
[1735256054485,12.37182537,188.08,188.02,0.12549]
[1735256055287,12.37182537,188.09,188.02,0.12549]
[1735256055461,12.37182537,188.09,188.02,12.49731537]
[1735256057189,12.37182537,188.1,188.03,12.37182537]
[1735256057359,12.37182537,188.12,188.05,0.12549]
[1735256057555,12.37182537,188.12,188.07,0.12549]
[1735256058085,12.37182537,188.14,188.07,0.12549]
[1735256058297,12.37182537,188.15,188.08,1.8238]
[1735256058466,12.37182537,188.17,188.11,0.12549]
[1735256058770,12.37182537,188.15,188.09,20.0]
[1735256058969,12.37182537,188.14,188.09,20.0]
[1735256059474,12.86761838,188.13,188.08,1.8238]
[1735256059669,12.37182537,188.1,188.08,1.8238]
[1735256059872,12.37182537,188.11,188.08,1.8238]
[1735256061284,12.37182537,188.12,188.08,1.8238]
[1735256062675,12.86761838,188.11,188.06,6.0066]
[1735256063766,12.37182537,188.11,188.06,6.0066]
[1735256064087,12.86761838,188.1,188.04,1.8238]